bitfinex-derivatives/quotes_SOLF0:USTF0_20241012
["timestamp","ask_amount","ask_price","bid_price","bid_amount"]
[1728693793778,13.26,146.44,146.36,1.3455]
[1728693793779,13.26,146.44,146.4,11.8157]
[1728693793970,0.12502,146.45,146.41,8.4]
[1728693794171,0.12502,146.45,146.42,8.4]
[1728693794574,0.12502,146.45,146.42,11.8151]
[1728693795172,3.53962,146.45,146.42,11.8151]
[1728693795767,0.12502,146.45,146.43,8.4]
[1728693796072,0.12502,146.45,146.43,11.815]
[1728693796264,0.12502,146.45,146.43,8.4]
[1728693796469,0.12502,146.45,146.43,11.815]
[1728693798674,0.12502,146.45,146.43,3.415]
[1728693800680,0.12502,146.45,146.42,11.8152]
[1728693800874,0.12502,146.45,146.39,1.3017]
[1728693800875,8.4,146.44,146.39,1.3017]
[1728693801076,8.4,146.44,146.4,4.86]
[1728693801672,11.815,146.44,146.4,4.86]
[1728693802077,8.4,146.44,146.39,9.7017]
[1728693802283,8.4,146.44,146.4,3.4156]
[1728693802284,3.4152,146.43,146.4,3.4156]
[1728693802469,3.4152,146.43,146.39,14.5617]
[1728693802470,11.8152,146.43,146.39,14.5617]
[1728693802677,3.4153,146.42,146.39,16.6759]
[1728693804483,11.8149,146.44,146.4,8.4]
[1728693805582,11.8149,146.44,146.41,3.4155]
[1728693806373,3.53972,146.45,146.42,11.8153]
[1728693806780,0.12502,146.45,146.42,8.4]
[1728693807080,0.12502,146.45,146.43,8.4]
[1728693808470,0.12502,146.45,146.44,3.4148]
[1728693813780,1e-08,146.45,146.44,11.8148]
[1728693814889,1e-08,146.45,146.44,3.4148]
[1728693817585,1e-08,146.45,146.44,11.8148]
[1728693828989,1e-08,146.45,146.44,3.4148]
[1728693835394,1e-08,146.45,146.44,11.8148]
[1728693839794,3.41460001,146.45,146.42,8.2752]
[1728693839999,1e-08,146.45,146.42,8.2752]
[1728693840498,3.41460001,146.45,146.42,8.2752]
[1728693840901,1e-08,146.45,146.43,3.4151]
[1728693842997,1e-08,146.45,146.41,1.3193]
[1728693843202,3.415,146.44,146.41,3.4154]
[1728693847005,3.415,146.44,146.4,8.4]
[1728693847006,1e-08,146.45,146.43,3.4149]
[1728693848998,8.40000001,146.45,146.41,8.4]
[1728693849204,11.81460001,146.45,146.42,3.4152]
[1728693851419,8.40000001,146.45,146.4,8.4]
[1728693851712,3.4148,146.44,146.41,3.4154]
[1728693851914,8.40000001,146.45,146.4,8.4]
[1728693852305,11.81470001,146.45,146.42,3.4153]
[1728693878540,3.415,146.44,146.41,3.4155]
[1728693885239,8.4,146.44,146.39,13.38501999]
[1728693885436,3.4151,146.43,146.4,3.4157]
[1728693886146,8.4,146.44,146.39,13.38501999]
[1728693886354,11.8149,146.44,146.41,3.4155]
[1728693891549,1e-08,146.45,146.4,8.4]
[1728693891744,3.41470001,146.45,146.42,3.4151]
[1728693897454,11.81470001,146.45,146.42,3.4151]
[1728693899749,8.40000001,146.45,146.4,8.4]
[1728693900053,3.4148,146.44,146.41,3.4154]
[1728693900843,3.4157,146.41,146.39,0.12501999]
[1728693901043,8.4,146.4,146.39,0.12501999]
[1728693901249,8.4,146.41,146.39,0.12501999]
[1728693901558,1.285,146.44,146.39,0.12501999]
[1728693901559,11.8155,146.42,146.39,0.12501999]
[1728693901745,8.4,146.42,146.39,0.12501999]
[1728693902959,3.4156,146.41,146.39,0.12501999]
[1728693903957,4.68480723,146.44,146.39,0.12501999]
[1728693904149,13.08480723,146.44,146.39,8.52501999]
[1728693904352,3.4151,146.43,146.4,3.4156]
[1728693907064,8.4,146.42,146.39,3.54091999]
[1728693909767,11.8151,146.43,146.39,3.54091999]
[1728693915080,8.4,146.43,146.39,3.54091999]
[1728693915380,3.4153,146.42,146.39,3.54091999]
[1728693916380,11.8153,146.42,146.39,3.54091999]
[1728693920981,11.8153,146.42,146.39,0.12501999]
[1728693921187,11.8158,146.4,146.34,3.417]
[1728693921383,8.4,146.37,146.32,9.6955]
[1728693921585,8.4,146.36,146.31,14.6065]
[1728693921781,11.8166,146.37,146.32,8.4]
[1728693923189,11.8165,146.37,146.33,3.54222]
[1728693925188,8.4,146.37,146.33,3.54222]
[1728693925386,3.4167,146.36,146.33,3.54222]
[1728693925887,8.4,146.37,146.33,3.54222]
[1728693926089,4.84,146.39,146.36,8.4]
[1728693926695,4.84,146.39,146.37,3.4164]
[1728693926987,11.8159,146.4,146.37,3.4164]
[1728693933788,8.4,146.4,146.34,4.86]
[1728693933994,8.4,146.38,146.34,4.86]
[1728693934414,8.4,146.36,146.33,0.12502]
[1728693935494,11.8169,146.36,146.33,0.12502]
[1728693937297,3.417,146.35,146.33,0.12502]
[1728693939293,8.4,146.36,146.33,0.12502]
[1728693939599,3.4172,146.34,146.33,0.12502]
[1728693944306,11.8172,146.34,146.33,0.12502]
[1728693948909,16.6572,146.34,146.33,0.12502]
[1728693950006,8.2572,146.34,146.33,0.12502]
[1728693955843,4.84,146.34,146.33,0.12502]
[1728693957718,8.2572,146.34,146.33,0.12502]
[1728693958722,8.2567,146.36,146.33,3.54232]
[1728693959318,8.2567,146.36,146.33,0.12502]
[1728693960422,8.2567,146.36,146.33,3.54242]
[1728693961726,3.4167,146.36,146.33,3.54242]
[1728693962525,3.4167,146.36,146.33,0.12502]
[1728693965132,11.817,146.35,146.33,0.12502]
[1728693969030,1.3174,146.39,146.33,8.52502]
[1728693969238,4.7334,146.39,146.34,8.4]
[1728693969736,11.8159,146.4,146.36,3.4166]
[1728693969936,11.8159,146.4,146.35,8.4]
[1728693970230,8.4,146.41,146.37,8.4]
[1728693971236,4.84,146.42,146.38,8.4]
[1728693972437,4.84,146.42,146.39,3.416]
[1728693972838,3.4151,146.43,146.39,11.816]
[1728693976339,3.4155,146.41,146.37,16.6563]
[1728693977040,8.4,146.41,146.37,4.84]
[1728693977338,3.4158,146.4,146.37,4.84]
[1728693977742,3.4158,146.4,146.37,8.2565]
[1728693982640,3.4163,146.38,146.35,13.2413]
[1728693982831,8.4,146.4,146.35,13.2413]
[1728693983034,8.4,146.4,146.36,8.4]
[1728693983238,3.4161,146.39,146.36,11.8166]
[1728693983538,13.24,146.41,146.36,8.4]
[1728693983738,4.84,146.43,146.4,8.4]
[1728693984143,3.4155,146.42,146.4,8.4]
[1728693984335,89.90307291,146.44,146.4,8.4]
[1728693984932,3.4152,146.43,146.4,8.4]
[1728693985342,89.90307291,146.44,146.4,8.4]
[1728693985542,3.4151,146.43,146.4,8.4]
[1728693986439,3.4151,146.43,146.4,11.8157]
[1728693986632,84.91807291,146.44,146.4,11.8157]
[1728693987144,81.50307291,146.44,146.4,11.8157]
[1728693987344,3.4151,146.43,146.4,11.8157]
[1728693995644,3.4151,146.43,146.41,8.4]
[1728694006058,3.4151,146.43,146.37,4.84]
[1728694006259,3.4153,146.42,146.38,3.4161]
[1728694006462,89.90307291,146.44,146.39,8.4]
[1728694006752,8.4,146.43,146.37,11.8165]
[1728694007353,3.4155,146.42,146.37,3.4165]
[1728694007557,8.4,146.43,146.37,8.4]
[1728694007759,8.4,146.42,146.37,8.4]
[1728694008261,8.4,146.42,146.35,4.8414]
[1728694008456,4.84,146.41,146.37,8.4]
[1728694008655,3.4162,146.38,146.35,9.8245]
[1728694008854,3.4162,146.38,146.35,8.4]
[1728694009958,8.4,146.39,146.34,3.417]
[1728694010156,8.4,146.38,146.33,0.12502]
[1728694010357,3.4172,146.34,146.33,0.12502]
[1728694015054,4.84,146.35,146.33,0.12502]
[1728694015360,8.257,146.35,146.33,8.52502]
[1728694017353,4.84,146.37,146.34,11.817]
[1728694017553,8.2563,146.38,146.34,11.817]
[1728694018360,3.4163,146.38,146.35,11.8169]
[1728694018561,3.4163,146.38,146.33,0.12502]
[1728694018562,4.84,146.39,146.37,8.4]
[1728694019461,8.256,146.39,146.36,8.4]
[1728694020454,3.416,146.39,146.36,8.4]
[1728694025279,3.416,146.39,146.36,11.8167]
[1728694026763,3.416,146.39,146.36,8.4]
[1728694027569,11.816,146.39,146.35,3.4168]
[1728694029273,8.4,146.39,146.34,11.8171]
[1728694029869,3.4163,146.38,146.35,3.4169]
[1728694030265,3.4163,146.38,146.35,11.8169]
[1728694031768,8.4,146.39,146.35,11.8169]
[1728694031970,8.4,146.39,146.35,8.4]
[1728694031971,11.8161,146.39,146.35,8.4]
[1728694032168,3.4161,146.39,146.36,3.4167]
[1728694032770,3.4161,146.39,146.35,11.8169]
[1728694034162,3.4163,146.38,146.35,3.4169]
[1728694034370,8.4,146.39,146.34,11.8172]
[1728694035366,3.4166,146.37,146.34,11.8172]
[1728694036563,3.417,146.35,146.33,0.12502]
[1728694037580,3.4169,146.35,146.33,0.12502]
[1728694039878,3.4168,146.36,146.33,0.12502]
[1728694040673,3.4168,146.36,146.33,3.54242]
[1728694041281,8.2566,146.37,146.35,8.4]
[1728694042372,4.84,146.37,146.35,11.8168]
[1728694042576,11.8161,146.39,146.35,11.8168]
[1728694042577,3.4161,146.39,146.36,8.4]
[1728694043572,8.2557,146.41,146.37,11.8163]
[1728694043771,11.80756848,146.44,146.39,8.4]
[1728694043967,11.80756848,146.44,146.34,2.5927]
[1728694043968,4.84,146.43,146.4,8.4]
[1728694044868,0.12502,146.45,146.41,8.4]
[1728694045082,0.12502,146.45,146.42,3.4153]
[1728694045283,0.12502,146.45,146.41,8.4]
[1728694045973,0.12502,146.45,146.44,8.4]
[1728694049683,0.12502,146.45,146.43,8.4]
[1728694051581,0.12502,146.45,146.42,11.8151]
[1728694053783,0.12502,146.45,146.42,8.4]
[1728694053986,3.53962,146.45,146.42,8.4]
[1728694055891,3.415,146.44,146.4,14.3982]
[1728694056787,8.52502,146.45,146.4,2.5826]
[1728694057090,8.4,146.43,146.39,3.4158]
[1728694057680,3.4153,146.42,146.39,3.4158]
[1728694058988,3.4153,146.42,146.39,11.8158]
[1728694059293,3.4156,146.41,146.38,3.4161]
[1728694059494,3.4156,146.41,146.38,11.8161]
[1728694059695,8.30288764,146.44,146.38,11.8161]
[1728694059696,8.4,146.42,146.38,8.4]
[1728694059993,8.4,146.41,146.37,1.3515]
[1728694060384,3.4159,146.4,146.37,1.3515]
[1728694061320,3.4159,146.4,146.37,13.1679]
[1728694065000,8.4,146.42,146.37,9.7515]
[1728694065293,3.4156,146.41,146.38,3.4162]
[1728694065499,8.30288764,146.44,146.38,8.4]
[1728694065701,8.30288764,146.44,146.4,8.4]
[1728694065702,16.6548,146.44,146.4,8.4]
[1728694065894,3.4148,146.44,146.4,8.4]
[1728694066294,3.4148,146.44,146.4,11.8156]
[1728694066495,3.4151,146.43,146.4,11.8156]
[1728694068101,8.52502,146.45,146.4,11.8156]
[1728694068102,3.4149,146.44,146.4,11.8156]
[1728694068406,8.52502,146.45,146.41,11.8155]
[1728694068794,11.93982,146.45,146.41,11.8155]
[1728694069290,3.415,146.44,146.4,11.8157]
[1728694069495,8.4,146.44,146.39,13.24]
[1728694069895,3.4151,146.43,146.39,8.2559]
[1728694070099,3.4151,146.43,146.4,8.4]
[1728694070801,3.4151,146.43,146.4,11.8157]
[1728694073997,8.4,146.44,146.4,11.8157]
[1728694074193,11.8149,146.44,146.4,11.8157]
[1728694074394,3.4149,146.44,146.41,11.8155]
[1728694077290,8.52502,146.45,146.39,4.84]
[1728694077494,0.12502,146.45,146.42,8.4]
[1728694077899,0.12502,146.45,146.42,11.8152]
[1728694078491,3.53962,146.45,146.42,11.8152]
[1728694080503,3.53962,146.45,146.42,8.4]
[1728694084103,0.12502,146.45,146.4,1.4211]
[1728694084310,8.4,146.43,146.37,1.3515]
[1728694084499,8.4,146.42,146.37,1.3515]
[1728694084699,11.76645184,146.42,146.37,1.3515]
[1728694085102,3.4161,146.39,146.37,1.3515]
[1728694085603,3.4161,146.39,146.35,4.7572]
[1728694085805,11.8163,146.38,146.34,13.2433]
[1728694086208,8.4,146.38,146.34,13.2433]
[1728694086507,3.4165,146.37,146.34,13.2433]
[1728694086710,3.4165,146.37,146.34,9.8262]
[1728694087507,8.4,146.35,146.33,0.12502]
[1728694087709,3.4172,146.34,146.33,0.12502]
[1728694091817,8.4,146.35,146.33,0.12502]
[1728694092119,3.417,146.35,146.33,0.12502]
[1728694096721,8.4,146.36,146.33,0.12502]
[1728694096919,3.4169,146.36,146.33,8.52502]
[1728694097919,3.44201148,146.37,146.33,8.52502]
[1728694098227,8.4,146.4,146.35,8.4]
[1728694098624,11.82366108,146.4,146.35,8.4]
[1728694098823,11.82366108,146.4,146.36,3.4167]
[1728694098824,15.23956108,146.4,146.36,3.4167]
[1728694099226,11.8159,146.4,146.36,3.4167]
[1728694099427,15.28227995,146.4,146.36,3.4167]
[1728694099627,3.416,146.39,146.36,3.4167]
[1728694101530,3.416,146.39,146.35,8.4]
[1728694101728,3.416,146.39,146.35,11.8168]
[1728694103824,3.416,146.39,146.35,3.4168]
[1728694104527,11.86637995,146.4,146.33,4.96502]
[1728694104762,3.4168,146.36,146.33,4.96502]
[1728694106033,3.4168,146.36,146.33,0.12502]
[1728694108436,8.4,146.37,146.33,0.12502]
[1728694108635,3.417,146.35,146.33,0.12502]
[1728694113641,3.4168,146.36,146.33,0.12502]
[1728694116035,11.8165,146.37,146.34,3.417]
[1728694117339,3.4165,146.37,146.34,11.817]
[1728694117533,4.84,146.38,146.34,11.817]
[1728694117726,8.2564,146.38,146.35,3.4169]
[1728694119532,3.4164,146.38,146.35,3.4169]
[1728694120839,15.25159453,146.39,146.35,3.4169]
[1728694121634,8.4,146.4,146.35,8.4]
[1728694121839,11.8158,146.4,146.37,3.4164]
[1728694122136,11.8158,146.4,146.35,8.4]
[1728694122636,11.8158,146.4,146.36,3.4166]
[1728694124033,3.416,146.39,146.36,3.4166]
[1728694126340,8.4,146.4,146.34,13.24]
[1728694126536,3.4163,146.38,146.35,3.4168]
[1728694129341,3.4161,146.39,146.35,3.4168]
[1728694129546,3.4161,146.39,146.36,11.8167]
[1728694129737,11.85371055,146.41,146.36,8.4]
[1728694129940,3.4156,146.41,146.38,3.4161]
[1728694132551,3.4158,146.4,146.37,11.8164]
[1728694133342,3.4161,146.39,146.36,3.4166]
[1728694133542,3.4161,146.39,146.36,11.8166]
[1728694136751,3.4159,146.4,146.37,3.4164]
[1728694139058,3.416,146.39,146.36,11.8166]
[1728694142155,8.4,146.41,146.36,11.8166]
[1728694142362,8.4,146.41,146.37,3.4164]
[1728694142363,3.4159,146.4,146.37,3.4164]
[1728694142659,11.86509094,146.42,146.37,8.4]
[1728694142858,8.4,146.42,146.37,8.4]
[1728694143060,78.22436655,146.45,146.41,8.4]
[1728694143759,73.38436655,146.45,146.41,8.4]
[1728694144160,3.415,146.44,146.41,8.4]
[1728694144759,3.415,146.44,146.4,11.8156]
[1728694145161,73.38436655,146.45,146.4,11.8156]
[1728694145357,3.4151,146.43,146.4,11.8156]
[1728694146763,3.4154,146.42,146.38,6.1234]
[1728694146964,3.4154,146.42,146.38,14.5234]
[1728694147459,8.4,146.43,146.38,13.1111]
[1728694147653,3.4155,146.41,146.38,13.1111]
[1728694149565,8.4,146.43,146.39,3.416]
[1728694149566,3.4153,146.42,146.39,3.416]
[1728694149865,8.4,146.44,146.4,8.4]
[1728694150062,3.4152,146.43,146.4,8.4]
[1728694153164,8.4,146.44,146.4,8.4]
[1728694153363,11.8149,146.44,146.4,11.8157]
[1728694154871,0.12502,146.45,146.42,11.8153]
[1728694158261,3.53962,146.45,146.42,11.8153]
[1728694158469,3.53962,146.45,146.42,3.4153]
[1728694158667,8.4,146.44,146.41,3.4154]
[1728694159468,11.8148,146.44,146.41,3.4154]
[1728694160067,3.4148,146.44,146.41,11.8154]
[1728694161170,8.52502,146.45,146.42,8.4]
[1728694161171,0.12502,146.45,146.42,8.4]
[1728694161465,3.53962,146.45,146.42,11.8151]
[1728694162669,3.53962,146.45,146.42,3.4151]
[1728694166901,3.53962,146.45,146.41,8.4]
[1728694166902,0.12502,146.45,146.44,8.4]
[1728694167070,0.12502,146.45,146.44,11.8148]
[1728694171285,0.12502,146.45,146.42,8.4]
[1728694171485,0.12502,146.45,146.41,8.4]
[1728694171680,3.4151,146.43,146.4,4.82]
[1728694172689,3.4151,146.43,146.4,8.2356]
[1728694172992,11.8149,146.44,146.4,8.2356]
[1728694173193,11.8149,146.44,146.4,16.6356]
[1728694176496,3.4151,146.43,146.4,8.2356]
[1728694177991,11.8151,146.43,146.39,9.8131]
[1728694178193,11.8151,146.43,146.39,13.229]
[1728694178394,3.4154,146.42,146.39,13.229]
[1728694178590,3.4154,146.42,146.39,4.829]
[1728694178789,3.4154,146.42,146.38,17.9311]
[1728694178790,3.4156,146.41,146.38,17.9311]
[1728694178990,8.4,146.42,146.38,17.9311]
[1728694179386,11.8154,146.42,146.38,17.9311]
[1728694179590,3.4154,146.42,146.38,14.515]
[1728694179791,3.4154,146.42,146.39,3.416]
[1728694182101,13.22,146.44,146.39,11.816]
[1728694182298,3.4151,146.43,146.39,11.816]
[1728694184102,3.4151,146.43,146.39,3.416]
[1728694185896,13.22,146.44,146.39,3.416]
[1728694185897,3.4153,146.42,146.39,3.416]
[1728694188404,8.4,146.43,146.38,1.295]
[1728694188608,8.22460301,146.44,146.38,1.295]
[1728694188609,8.4,146.41,146.38,1.295]
[1728694188907,8.4,146.4,146.35,1.3248]
[1728694189109,3.4163,146.38,146.35,3.4169]
[1728694189607,3.4163,146.38,146.34,16.637]
[1728694190002,3.4165,146.37,146.34,11.817]
[1728694192308,3.4165,146.37,146.34,8.4]
[1728694192704,13.22,146.38,146.33,0.12502]
[1728694192904,3.4167,146.36,146.33,0.12502]
[1728694193903,3.4172,146.34,146.33,0.12502]
[1728694196312,3.4172,146.34,146.31,8.2378]
[1728694196313,13.22,146.34,146.27,0.12502]
[1728694196499,8.4,146.3,146.27,0.12502]
[1728694197104,3.4185,146.29,146.27,0.12502]
[1728694197404,8.4,146.3,146.27,0.12502]
[1728694197809,3.4183,146.29,146.27,0.12502]
[1728694198710,8.4,146.3,146.27,0.12502]
[1728694199023,3.4186,146.28,146.27,0.12502]
[1728694200201,11.8186,146.28,146.27,0.12502]
[1728694200599,3.4195,146.24,146.22,1.3739]
[1728694200908,3.4195,146.24,146.21,0.12502]
[1728694202806,11.8198,146.23,146.21,0.12502]
[1728694204403,8.4,146.22,146.21,0.12502]
[1728694204613,8.4,146.23,146.21,0.12502]
[1728694205814,11.8198,146.23,146.21,0.12502]
[1728694208222,8.4,146.23,146.21,0.12502]
[1728694208413,3.4196,146.24,146.21,0.12502]
[1728694208718,13.24,146.25,146.21,0.12502]
[1728694209219,16.6594,146.25,146.21,3.54522]
[1728694210316,4.84,146.25,146.22,8.4]
[1728694210620,4.84,146.25,146.23,3.4197]
[1728694210951,3.419,146.27,146.23,3.4197]
[1728694211120,11.819,146.27,146.23,3.4197]
[1728694211322,8.4,146.27,146.23,3.4197]
[1728694211516,3.40947732,146.28,146.23,8.4]
[1728694211719,13.24,146.28,146.24,8.4]
[1728694211929,8.4,146.27,146.23,8.4]
[1728694212421,8.4,146.26,146.21,8.52502]
[1728694213419,3.4193,146.25,146.22,3.4199]
[1728694213720,8.4,146.26,146.22,3.4199]
[1728694213916,8.4,146.26,146.22,11.8199]
[1728694214817,11.8192,146.26,146.22,11.8199]
[1728694216718,8.4,146.23,146.21,0.12502]
[1728694217316,8.4,146.22,146.21,0.12502]
[1728694217723,8.4,146.23,146.21,0.12502]
[1728694219418,11.8198,146.23,146.21,0.12502]
[1728694219616,8.4,146.24,146.21,0.12502]
[1728694220017,3.34141091,146.28,146.21,8.52502]
[1728694220218,4.84,146.26,146.21,8.52502]
[1728694220418,3.43775824,146.26,146.21,8.52502]
[1728694220614,3.4193,146.25,146.22,3.4199]
[1728694223516,11.88530061,146.27,146.22,3.4199]
[1728694223721,3.4191,146.26,146.22,3.4199]
[1728694224424,3.4191,146.26,146.21,8.52502]
[1728694225133,3.4191,146.26,146.22,3.4199]
[1728694226420,3.4191,146.26,146.23,3.4197]
[1728694227729,11.8194,146.25,146.22,3.4199]
[1728694230433,8.4,146.25,146.21,0.12502]
[1728694230637,3.4195,146.24,146.21,3.54522]
[1728694231531,11.8195,146.24,146.21,3.54522]
[1728694235540,3.4195,146.24,146.21,3.54522]
[1728694235733,8.4,146.26,146.21,11.94522]
[1728694236029,3.4194,146.25,146.21,11.94522]
[1728694236942,3.4194,146.25,146.22,3.4199]
[1728694240341,3.419,146.27,146.23,3.4197]
[1728694240543,8.4,146.27,146.23,3.4197]
[1728694241232,8.4,146.26,146.21,8.52502]
[1728694241438,8.4,146.26,146.22,3.4199]
[1728694242643,3.4193,146.25,146.22,3.4199]
[1728694243842,3.4191,146.26,146.22,11.8199]
[1728694244847,8.4,146.27,146.22,11.8199]
[1728694245042,3.4193,146.25,146.22,11.8199]
[1728694245345,3.4193,146.25,146.22,3.4199]
[1728694247047,3.4195,146.24,146.21,11.94512]
[1728694251752,3.4194,146.25,146.22,3.42]
[1728694252352,3.4196,146.24,146.21,3.54512]
[1728694253145,8.4,146.25,146.21,0.12502]
[1728694253337,3.4198,146.23,146.21,0.12502]
[1728694254341,11.82,146.22,146.21,0.12502]
[1728694254545,3.42,146.22,146.21,0.12502]
[1728694255755,8.4,146.24,146.21,0.12502]
[1728694255947,3.4198,146.23,146.21,0.12502]
[1728694256149,4.84,146.25,146.22,8.4]
[1728694256755,4.84,146.25,146.22,11.8199]
[1728694256756,8.2594,146.25,146.22,11.8199]
[1728694257551,4.84,146.25,146.22,8.4]
[1728694257773,3.4195,146.24,146.21,3.54512]
[1728694257954,4.84,146.25,146.21,8.52502]
[1728694258353,4.84,146.25,146.22,11.8198]
[1728694258958,3.4192,146.26,146.22,11.8198]
[1728694261961,9.7962,146.27,146.22,11.8198]
[1728694262260,3.4193,146.25,146.22,11.8198]
[1728694262953,8.21219471,146.28,146.23,8.4]
[1728694263161,13.24,146.29,146.23,8.4]
[1728694263456,3.419,146.27,146.23,11.8196]
[1728694263865,8.4,146.24,146.21,0.12502]
[1728694264060,3.4197,146.23,146.21,0.12502]
[1728694264256,8.4,146.23,146.21,0.12502]
[1728694264960,3.42,146.22,146.21,0.12502]
[1728694265160,11.82,146.22,146.21,0.12502]
[1728694265560,3.42,146.22,146.21,0.12502]
[1728694267852,11.82,146.22,146.21,0.12502]
[1728694270962,13.24,146.23,146.21,0.12502]
[1728694271167,16.6598,146.23,146.21,0.12502]
[1728694272070,3.42,146.22,146.21,0.12502]
[1728694273172,8.4,146.23,146.21,0.12502]
[1728694274176,11.8198,146.23,146.21,0.12502]
[1728694274871,3.4198,146.23,146.21,0.12502]
[1728694276771,11.8196,146.24,146.21,3.54512]
[1728694276969,4.84,146.27,146.22,8.4]
[1728694277167,13.24,146.27,146.22,8.4]
[1728694277367,13.24,146.27,146.23,3.4196]
[1728694278570,3.4191,146.26,146.23,3.4196]
[1728694281073,11.8191,146.26,146.23,3.4196]
[1728694281275,11.8191,146.26,146.22,11.8199]
[1728694282367,8.4,146.26,146.22,3.4199]
[1728694282565,11.8193,146.25,146.22,3.4199]
[1728694283073,3.4193,146.25,146.22,3.4199]
[1728694283267,11.8193,146.25,146.22,3.4199]
[1728694285175,3.4193,146.25,146.22,3.4199]
[1728694287273,11.87664559,146.28,146.23,8.4]
[1728694287479,3.4189,146.27,146.24,3.4195]
[1728694287669,3.4189,146.27,146.24,11.8195]
[1728694288675,3.4189,146.27,146.24,3.4195]
[1728694289877,16.6587,146.28,146.24,3.4193]
[1728694290270,11.8187,146.28,146.23,8.4]
[1728694290470,3.4184,146.29,146.26,11.8189]
[1728694290680,81.73349732,146.31,146.26,8.4]
[1728694290982,73.33349732,146.31,146.27,8.4]
[1728694291184,76.75139732,146.31,146.28,3.4186]
[1728694291480,4.96502,146.33,146.3,8.4]
[1728694291481,0.12502,146.33,146.3,8.4]
[1728694292574,0.12502,146.33,146.3,11.8179]
[1728694293002,0.12502,146.33,146.3,8.4]
[1728694293484,0.12502,146.33,146.32,8.4]
[1728694294279,0.12502,146.33,146.32,11.8176]
[1728694294877,4.82,146.38,146.35,3.4169]
[1728694295088,8.52502,146.39,146.35,11.8169]
[1728694295581,0.12502,146.39,146.36,11.8167]
[1728694296281,0.12502,146.39,146.37,3.4163]
[1728694296481,0.12502,146.39,146.36,8.4]
[1728694296680,11.94122,146.39,146.35,13.22]
[1728694298477,11.94122,146.39,146.35,16.6369]
[1728694300478,3.54122,146.39,146.36,8.4]
[1728694304387,3.4163,146.38,146.35,4.82]
[1728694305888,11.8167,146.37,146.33,19.3122]
[1728694307783,3.4167,146.37,146.34,8.4]
[1728694307988,3.4167,146.37,146.34,11.8171]
[1728694312396,13.34502,146.39,146.34,8.4]
[1728694312587,3.4163,146.38,146.35,3.4169]
[1728694314517,8.36112,146.39,146.35,11.8169]
[1728694314793,0.12502,146.39,146.37,8.4]
[1728694316386,0.12502,146.39,146.37,11.8164]
[1728694317495,0.12502,146.39,146.37,8.4]
[1728694317794,3.54102,146.39,146.37,8.4]
[1728694319794,3.54102,146.39,146.36,11.8166]
[1728694320588,0.12502,146.39,146.34,8.4]
[1728694320794,3.4164,146.38,146.35,3.4169]
[1728694321797,3.4164,146.38,146.34,11.817]
[1728694324525,3.4165,146.37,146.34,11.817]
[1728694326901,3.4169,146.36,146.32,3.4175]
[1728694327095,11.8169,146.36,146.32,11.8175]
[1728694327502,11.8169,146.36,146.32,8.4]
[1728694327806,11.8169,146.36,146.33,3.4174]